Workbook

Sheet Facility Structure
A1: Example RAROC Calculation
X2: TRANSFER | Y2: EXPECTED | AB2: ECONOMIC | AC2: CAPITAL | AD2: RISK ADJUSTED | AE2: =AE5/(G33/12) -> 313480.6872 | AF2: =AF5/(G33/12) -> 1567403.41
A3: Facility structure | C3: RAROC | D3: =AF3 -> 0.2000000034 | P3: REVENUES | Q3: EXPENSES | R3: PD | T3: LGD | V3: EAD | W3: PDxLGD | X3: PDxLGD COUNTRY | Y3: LOSS | AB3: CAPITAL | AC3: BENEFIT | AD3: RETURN | AF3: =AE2/AF2 -> 0.2000000034
C4: total revenue | D4: =P5 -> 5897543.858 | G4: Months | H4: Drawdown | I4: Repayment | J4: Balance | K4: Agency Fee | L4: Tech. Fee | N4: Interest Margin | O4: Arrangm. Fee | P4: bank total receipts p.a. | Q4: Admin cost | R4: EDF | S4: Country EDF | T4: Severity | U4: Country Severity | V4: LEE | W4: EDF.Severity | X4: Country(EDF.severity) | Y4: EL | AB4: EC | AC4: Capital Benefit | AD4: Risk Adj. Return | AE4: RAR NPV | AF4: EC NPV
H5: =SUM(H6:H33) -> 100000000 | I5: =SUM(I9:I33) -> 100000000 | K5: =SUM(K9:K33) -> 200000 | L5: =SUM(L9:L33) -> 100000 | N5: =N9+N11+SUM(N12:N33) -> 4181575.525 | O5: =SUM(O7:O33) -> 1000000 | P5: =SUM(P9:P33) -> 5897543.858 | Q5: =SUM(Q7:Q33) -> 650000 | AB5: =SUM(AB7:AB33) -> 24067796.08 | AC5: =SUM(AC9:AC33) -> 1203389.804 | AD5: =SUM(AD9:AD33) -> 4824858.662 | AE5: =SUM(AE9:AE33) -> 4075248.934 | AF5: =SUM(AF9:AF33) -> 20376244.32
A6: Term Facility | G6: 0 | H6: 0 | J6: =H6 -> 0
G7: 1 | H7: =B14 -> 100000000 | J7: =J6+H7 -> 100000000
A8: BORROWER (RATING): | B8: BB | G8: 6 | J8: =J7+H8-I8 -> 100000000
A9: COUNTRY (RATING): | B9: BB | G9: 12 | I9: =IF(J8=0,0,$H$7/$B$20) -> 5000000 | J9: =J8+H9-I9 -> 95000000 | K9: =IF(J9=0,0,$B$27) -> 20000 | L9: =IF(K9=0,0,$B$28) -> 10000 | M9: =intperc -> 0.00875722623 | N9: =J8*intperc/2 -> 437861.3115 | O9: =underwr*B13 -> 1000000 | P9: =SUM(K9:O9) -> 1467861.32 | Q9: =$B$41*(L9+K9+O9) -> 515000 | R9: =B10 -> 0.02 | S9: =B11 -> 0.0097 | T9: =sevperc -> 0.1 | U9: =Ctry.Sev -> 0.1 | V9: =J9 -> 95000000 | W9: =R9*T9 -> 0.002 | X9: =S9*U9 -> 0.00097 | Y9: =V9*(W9+X9) -> 282150 | Z9: =T9^2*R9*(1-R9)+R9*T9*(1-T9)/4 -> 0.000646 | AA9: =U9^2*S9*(1-S9)+(1-U9)*X9/4 -> 0.0003143091 | AB9: =(SQRT(Z9)+SQRT(AA9))*V9*SQRT(rho)*capital_multiple -> 4176147.266 | AC9: =AB9*capbenperc -> 208807.3633 | AD9: =P9-Q9-Y9+AC9 -> 879518.6835 | AE9: =AD9/(1+discount_rate)^(G9/12-0.5) -> 858322.3474 | AF9: =AB9/(1+discount_rate)^(G9/12-0.5) -> 4075502.421
A10: EDF or PD credit | B10: 0.02 | C10: Expected Default Factor or probabiity of Default depends on rating of Borrower | G10: 18 | I10: 5000000 | J10: =J9+H10-I10 -> 90000000 | M10: 0.00875722623 | N10: =J9*M10/2 -> 415968.2459
A11: EDF or PD country | B11: 0.0097 | C11: Expected Default Factor or probabiity of Default depends on rating of country (transfer risk devaluation,) | G11: 24 | I11: 5000000 | J11: 85000000 | K11: =IF(J11=0,0,$B$27) -> 20000 | L11: =IF(K11=0,0,$B$28) -> 10000 | M11: 0.00875722623 | N11: =J10*M11/2 -> 394075.1803 | P11: =SUM(K11:O11)+N10 -> 840043.435 | Q11: =$B$41*(L11+K11+O11) -> 15000 | R11: =R9 -> 0.02 | S11: =S9 -> 0.0097 | T11: =sevperc -> 0.1 | U11: =Ctry.Sev -> 0.1 | V11: =(J9+J11)/2 -> 90000000 | W11: =R11*T11 -> 0.002 | X11: =S11*U11 -> 0.00097 | Y11: =V11*(W11+X11) -> 267300 | Z11: =T11^2*R11*(1-R11)+R11*T11*(1-T11)/4 -> 0.000646 | AA11: =U11^2*S11*(1-S11)+(1-U11)*X11/4 -> 0.0003143091 | AB11: =(SQRT(Z11)+SQRT(AA11))*V11*SQRT(rho)*capital_multiple -> 3956350.041 | AC11: =AB11*capbenperc -> 197817.5021 | AD11: =P11-Q11-Y11+AC11 -> 755560.9371 | AE11: =AD11/(1+discount_rate)^(G11/12-0.5) -> 702239.9749 | AF11: =AB11/(1+discount_rate)^(G11/12-0.5) -> 3677145.042
G12: 30 | I12: 5000000 | J12: =J11+H12-I12 -> 80000000 | M12: 0.00875722623 | N12: =J11*intperc/2 -> 372182.1148
A13: Underwiting Amount | B13: 100000000 | C13: Euro | G13: 36 | I13: 5000000 | J13: 75000000 | K13: =IF(J13=0,0,$B$27) -> 20000 | L13: =IF(K13=0,0,$B$28) -> 10000 | M13: 0.00875722623 | N13: =J12*intperc/2 -> 350289.0492 | P13: =SUM(K13:O13)+N12 -> 752471.1727 | Q13: =$B$41*(L13+K13+O13) -> 15000 | R13: =R9 -> 0.02 | S13: =S9 -> 0.0097 | T13: =sevperc -> 0.1 | U13: =Ctry.Sev -> 0.1 | V13: =(J11+J13)/2 -> 80000000 | W13: =R13*T13 -> 0.002 | X13: =S13*U13 -> 0.00097 | Y13: =V13*(W13+X13) -> 237600 | Z13: =T13^2*R13*(1-R13)+R13*T13*(1-T13)/4 -> 0.000646 | AA13: =U13^2*S13*(1-S13)+(1-U13)*X13/4 -> 0.0003143091 | AB13: =(SQRT(Z13)+SQRT(AA13))*V13*SQRT(rho)*capital_multiple -> 3516755.592 | AC13: =AB13*capbenperc -> 175837.7796 | AD13: =P13-Q13-Y13+AC13 -> 675708.9523 | AE13: =AD13/(1+discount_rate)^(G13/12-0.5) -> 598117.384 | AF13: =AB13/(1+discount_rate)^(G13/12-0.5) -> 3112927.019
A14: final Take | B14: 100000000 | G14: =G13+6 -> 42 | I14: 5000000 | J14: 70000000 | M14: 0.00875722623 | N14: =J13*M14/2 -> 328395.9836
G15: 48 | I15: 5000000 | J15: 65000000 | K15: =IF(J15=0,0,$B$27) -> 20000 | L15: =IF(K15=0,0,$B$28) -> 10000 | M15: 0.00875722623 | N15: =J14*M15/2 -> 306502.918 | P15: =SUM(K15:O15)+N14 -> 664898.9104 | Q15: =$B$41*(L15+K15+O15) -> 15000 | R15: =R9 -> 0.02 | S15: =S9 -> 0.0097 | T15: =sevperc -> 0.1 | U15: =Ctry.Sev -> 0.1 | V15: =(J13+J15)/2 -> 70000000 | W15: =R15*T15 -> 0.002 | X15: =S15*U15 -> 0.00097 | Y15: =V15*(W15+X15) -> 207900 | Z15: =T15^2*R15*(1-R15)+R15*T15*(1-T15)/4 -> 0.000646 | AA15: =U15^2*S15*(1-S15)+(1-U15)*X15/4 -> 0.0003143091 | AB15: =(SQRT(Z15)+SQRT(AA15))*V15*SQRT(rho)*capital_multiple -> 3077161.143 | AC15: =AB15*capbenperc -> 153858.0572 | AD15: =P15-Q15-Y15+AC15 -> 595856.9676 | AE15: =AD15/(1+discount_rate)^(G15/12-0.5) -> 502318.8495 | AF15: =AB15/(1+discount_rate)^(G15/12-0.5) -> 2594105.85
A16: Loan structure: | B16: NO ECA COVER | G16: 54 | I16: 5000000 | J16: 60000000 | M16: 0.00875722623 | N16: =J15*intperc/2 -> 284609.8525
G17: 60 | I17: 5000000 | J17: 55000000 | K17: =IF(J17=0,0,$B$27) -> 20000 | L17: =IF(K17=0,0,$B$28) -> 10000 | M17: 0.00875722623 | N17: =J16*intperc/2 -> 262716.7869 | P17: =SUM(K17:O17)+N16 -> 577326.6481 | Q17: =$B$41*(L17+K17+O17) -> 15000 | R17: =R9 -> 0.02 | S17: =S9 -> 0.0097 | T17: =sevperc -> 0.1 | U17: =Ctry.Sev -> 0.1 | V17: =(J15+J17)/2 -> 60000000 | W17: =R17*T17 -> 0.002 | X17: =S17*U17 -> 0.00097 | Y17: =V17*(W17+X17) -> 178200 | Z17: =T17^2*R17*(1-R17)+R17*T17*(1-T17)/4 -> 0.000646 | AA17: =U17^2*S17*(1-S17)+(1-U17)*X17/4 -> 0.0003143091 | AB17: =(SQRT(Z17)+SQRT(AA17))*V17*SQRT(rho)*capital_multiple -> 2637566.694 | AC17: =AB17*capbenperc -> 131878.3347 | AD17: =P17-Q17-Y17+AC17 -> 516004.9828 | AE17: =AD17/(1+discount_rate)^(G17/12-0.5) -> 414287.7096 | AF17: =AB17/(1+discount_rate)^(G17/12-0.5) -> 2117637.428
A18: Total tenor (yrs): | B18: =B20/2 -> 10 | C18: years | G18: 66 | I18: 5000000 | J18: 50000000 | M18: 0.00875722623 | N18: =J17*M18/2 -> 240823.7213
A19: Disbursement Period | B19: 12 | C19: months | G19: 72 | I19: 5000000 | J19: 45000000 | K19: =IF(J19=0,0,$B$27) -> 20000 | L19: =IF(K19=0,0,$B$28) -> 10000 | M19: 0.00875722623 | N19: =J18*M19/2 -> 218930.6557 | P19: =SUM(K19:O19)+N18 -> 489754.3858 | Q19: =$B$41*(L19+K19+O19) -> 15000 | R19: =R9 -> 0.02 | S19: =S9 -> 0.0097 | T19: =sevperc -> 0.1 | U19: =Ctry.Sev -> 0.1 | V19: =(J17+J19)/2 -> 50000000 | W19: =R19*T19 -> 0.002 | X19: =S19*U19 -> 0.00097 | Y19: =V19*(W19+X19) -> 148500 | Z19: =T19^2*R19*(1-R19)+R19*T19*(1-T19)/4 -> 0.000646 | AA19: =U19^2*S19*(1-S19)+(1-U19)*X19/4 -> 0.0003143091 | AB19: =(SQRT(Z19)+SQRT(AA19))*V19*SQRT(rho)*capital_multiple -> 2197972.245 | AC19: =AB19*capbenperc -> 109898.6123 | AD19: =P19-Q19-Y19+AC19 -> 436152.9981 | AE19: =AD19/(1+discount_rate)^(G19/12-0.5) -> 333501.4429 | AF19: =AB19/(1+discount_rate)^(G19/12-0.5) -> 1680664.626
A20: Repayment Schedule (equal) | B20: 20 | C20: semi-annual | G20: 78 | I20: 5000000 | J20: 40000000 | M20: 0.00875722623 | N20: =J19*intperc/2 -> 197037.5902
G21: 84 | I21: 5000000 | J21: 35000000 | K21: =IF(J21=0,0,$B$27) -> 20000 | L21: =IF(K21=0,0,$B$28) -> 10000 | M21: 0.00875722623 | N21: =J20*intperc/2 -> 175144.5246 | P21: =SUM(K21:O21)+N20 -> 402182.1235 | Q21: =$B$41*(L21+K21+O21) -> 15000 | R21: =R9 -> 0.02 | S21: =S9 -> 0.0097 | T21: =sevperc -> 0.1 | U21: =Ctry.Sev -> 0.1 | V21: =(J19+J21)/2 -> 40000000 | W21: =R21*T21 -> 0.002 | X21: =S21*U21 -> 0.00097 | Y21: =V21*(W21+X21) -> 118800 | Z21: =T21^2*R21*(1-R21)+R21*T21*(1-T21)/4 -> 0.000646 | AA21: =U21^2*S21*(1-S21)+(1-U21)*X21/4 -> 0.0003143091 | AB21: =(SQRT(Z21)+SQRT(AA21))*V21*SQRT(rho)*capital_multiple -> 1758377.796 | AC21: =AB21*capbenperc -> 87918.8898 | AD21: =P21-Q21-Y21+AC21 -> 356301.0133 | AE21: =AD21/(1+discount_rate)^(G21/12-0.5) -> 259469.6784 | AF21: =AB21/(1+discount_rate)^(G21/12-0.5) -> 1280506.381
A22: Income (estimated): | G22: 90 | I22: 5000000 | J22: 30000000 | M22: 0.00875722623 | N22: =J21*M22/2 -> 153251.459
A23: Net Margin | B23: 0.00875722623 | C23: p.a. | G23: 96 | I23: 5000000 | J23: 25000000 | K23: =IF(J23=0,0,$B$27) -> 20000 | L23: =IF(K23=0,0,$B$28) -> 10000 | M23: 0.00875722623 | N23: =J22*M23/2 -> 131358.3934 | P23: =SUM(K23:O23)+N22 -> 314609.8612 | Q23: =$B$41*(L23+K23+O23) -> 15000 | R23: =R9 -> 0.02 | S23: =S9 -> 0.0097 | T23: =sevperc -> 0.1 | U23: =Ctry.Sev -> 0.1 | V23: =(J21+J23)/2 -> 30000000 | W23: =R23*T23 -> 0.002 | X23: =S23*U23 -> 0.00097 | Y23: =V23*(W23+X23) -> 89100 | Z23: =T23^2*R23*(1-R23)+R23*T23*(1-T23)/4 -> 0.000646 | AA23: =U23^2*S23*(1-S23)+(1-U23)*X23/4 -> 0.0003143091 | AB23: =(SQRT(Z23)+SQRT(AA23))*V23*SQRT(rho)*capital_multiple -> 1318783.347 | AC23: =AB23*capbenperc -> 65939.16735 | AD23: =P23-Q23-Y23+AC23 -> 276449.0286 | AE23: =AD23/(1+discount_rate)^(G23/12-0.5) -> 191732.319 | AF23: =AB23/(1+discount_rate)^(G23/12-0.5) -> 914647.4153
C24: p.a. | G24: =G23+6 -> 102 | I24: 5000000 | J24: 20000000 | M24: 0.00875722623 | N24: =J23*intperc/2 -> 109465.3279
C25: p.a. | G25: 108 | I25: 5000000 | J25: 15000000 | K25: =IF(J25=0,0,$B$27) -> 20000 | L25: =IF(K25=0,0,$B$28) -> 10000 | M25: 0.00875722623 | N25: =J24*intperc/2 -> 87572.2623 | P25: =SUM(K25:O25)+N24 -> 227037.5989 | Q25: =$B$41*(L25+K25+O25) -> 15000 | R25: =R9 -> 0.02 | S25: =S9 -> 0.0097 | T25: =sevperc -> 0.1 | U25: =Ctry.Sev -> 0.1 | V25: =(J23+J25)/2 -> 20000000 | W25: =R25*T25 -> 0.002 | X25: =S25*U25 -> 0.00097 | Y25: =V25*(W25+X25) -> 59400 | Z25: =T25^2*R25*(1-R25)+R25*T25*(1-T25)/4 -> 0.000646 | AA25: =U25^2*S25*(1-S25)+(1-U25)*X25/4 -> 0.0003143091 | AB25: =(SQRT(Z25)+SQRT(AA25))*V25*SQRT(rho)*capital_multiple -> 879188.898 | AC25: =AB25*capbenperc -> 43959.4449 | AD25: =P25-Q25-Y25+AC25 -> 196597.0438 | AE25: =AD25/(1+discount_rate)^(G25/12-0.5) -> 129857.7701 | AF25: =AB25/(1+discount_rate)^(G25/12-0.5) -> 580728.5176
A26: Commitment Fee: | B26: 0 | C26: ² | G26: 114 | I26: 5000000 | J26: 10000000 | M26: 0.00875722623 | N26: =J25*M26/2 -> 65679.19672
A27: Agency Fee: | B27: 20000 | C27: p.a. | G27: 120 | I27: 5000000 | J27: 5000000 | K27: =IF(J27=0,0,$B$27) -> 20000 | L27: =IF(K27=0,0,$B$28) -> 10000 | M27: 0.00875722623 | N27: =J26*M27/2 -> 43786.13115 | P27: =SUM(K27:O27)+N26 -> 139465.3366 | Q27: =$B$41*(L27+K27+O27) -> 15000 | R27: =R9 -> 0.02 | S27: =S9 -> 0.0097 | T27: =sevperc -> 0.1 | U27: =Ctry.Sev -> 0.1 | V27: =(J25+J27)/2 -> 10000000 | W27: =R27*T27 -> 0.002 | X27: =S27*U27 -> 0.00097 | Y27: =V27*(W27+X27) -> 29700 | Z27: =T27^2*R27*(1-R27)+R27*T27*(1-T27)/4 -> 0.000646 | AA27: =U27^2*S27*(1-S27)+(1-U27)*X27/4 -> 0.0003143091 | AB27: =(SQRT(Z27)+SQRT(AA27))*V27*SQRT(rho)*capital_multiple -> 439594.449 | AC27: =AB27*capbenperc -> 21979.72245 | AD27: =P27-Q27-Y27+AC27 -> 116745.0591 | AE27: =AD27/(1+discount_rate)^(G27/12-0.5) -> 73441.26826 | AF27: =AB27/(1+discount_rate)^(G27/12-0.5) -> 276537.3893
A28: Technical Fee: | B28: 10000 | C28: p.a. | G28: 126 | I28: 5000000 | J28: 0 | M28: 0.00875722623 | N28: =J27*intperc/2 -> 21893.06557 | Y28: =V28*(W28+X28) -> 0 | AB28: 0 | AC28: 0 | AD28: 0 | AF28: 0
A29: Underwriting and | G29: 132 | I29: 0 | J29: 0 | K29: =IF(J29=0,0,$B$27) -> 0 | L29: =IF(K29=0,0,$B$28) -> 0 | N29: 0 | P29: =SUM(K29:O29)+N28 -> 21893.06557 | Q29: =0.5*(L29+K29+O29) -> 0 | R29: =R9 -> 0.02 | S29: =S9 -> 0.0097 | T29: =T9 -> 0.1 | U29: =U9 -> 0.1 | V29: =(J27+J29)/2 -> 2500000 | W29: =W9 -> 0.002 | X29: =X9 -> 0.00097 | Y29: 7425 | Z29: =T29^2*R29*(1-R29)+R29*T29*(1-T29)/4 -> 0.000646 | AA29: =U29^2*S29*(1-S29)+(1-U29)*X29/4 -> 0.0003143091 | AB29: 109898.6123 | AC29: 5494.930613 | AD29: =P29-Q29-Y29+AC29 -> 19962.99619 | AE29: =AD29/(1+discount_rate)^(G29/12-0.5) -> 11960.19013 | AF29: 65842.23556
A30: Arrangement Fees: | B30: 0.01 | C30: flat | D30: =NORMSINV(0.9998) -> 3.540083799 | E30: =NORMSDIST(capital_multiple) -> 1 | G30: 138 | I30: 0 | J30: 0 | N30: 0 | Y30: 0 | AB30: 0 | AC30: 0 | AD30: 0 | AF30: 0
D31: =NORMSINV(0.95) -> 1.644853627 | E31: =NORMSDIST(D31) -> 0.95 | G31: 144 | I31: 0 | J31: 0 | K31: =IF(J31=0,0,$B$27) -> 0 | L31: =IF(K31=0,0,$B$28) -> 0 | N31: 0 | P31: =SUM(K31:O31)+N30 -> 0 | Q31: =0.5*(L31+K31+O31) -> 0 | R31: =R9 -> 0.02 | S31: =S9 -> 0.0097 | T31: =T9 -> 0.1 | U31: =U9 -> 0.1 | V31: =(J29+J31)/2 -> 0 | W31: =W9 -> 0.002 | X31: =X9 -> 0.00097 | Y31: 0 | Z31: =T31^2*R31*(1-R31)+R31*T31*(1-T31)/4 -> 0.000646 | AA31: =U31^2*S31*(1-S31)+(1-U31)*X31/4 -> 0.0003143091 | AB31: 0 | AC31: 0 | AD31: =P31-Q31-Y31+AC31 -> 0 | AE31: =AD31/(1+discount_rate)^(G31/12-0.5) -> 0 | AF31: 0
A32: Rho or Unexpected loss | B32: 0.0089 | C32: This represents the estimated correlation between this facility and the rest of the portfolio (diversification effect). Contribute to unlexpected loss | G32: 150 | I32: 0 | J32: 0 | N32: 0 | Y32: 0 | AB32: 0 | AC32: 0 | AD32: 0 | AF32: 0
A33: Capital multiple | B33: 10.8 | C33: This shows the number of standard deviations to reach the Bank's desired safety level (AAA = 99.98% confidence) | G33: 156 | I33: 0 | J33: 0 | K33: =IF(J33=0,0,$B$27) -> 0 | L33: =IF(K33=0,0,$B$28) -> 0 | N33: 0 | P33: =SUM(K33:O33)+N32 -> 0 | Q33: =0.5*(L33+K33+O33) -> 0 | R33: =R9 -> 0.02 | S33: =S9 -> 0.0097 | T33: =T9 -> 0.1 | U33: =U9 -> 0.1 | V33: =(J31+J33)/2 -> 0 | W33: =W9 -> 0.002 | X33: =X9 -> 0.00097 | Y33: 0 | Z33: =T33^2*R33*(1-R33)+R33*T33*(1-T33)/4 -> 0.000646 | AA33: =U33^2*S33*(1-S33)+(1-U33)*X33/4 -> 0.0003143091 | AB33: 0 | AC33: 0 | AD33: =P33-Q33-Y33+AC33 -> 0 | AE33: =AD33/(1+discount_rate)^(G33/12-0.5) -> 0 | AF33: 0
A34: Capital benefit % | B34: 0.05 | C34: This reflects the rebate in funding costs (because not all of the loan needs to be funded externally - some of it is funded with our own capital)
A35: US discount rate | B35: 0.05
A36: Severity or LGD (Loss Given default) Facility | B36: 0.1 | C36: This is an estimate of the amount we would lose in case of a default, thereby taking account of seniority of loan, collateral specfic to the facility
A37: Country Severity or LGD | B37: 0.1 | C37: This is an estimate of the severity in case of a country default taking into account political risk cover
A39: FTP | B39: GROSS Margin
A40: 0.01 | B40: =B23+A40 -> 0.01875722623
A41: Admin Cost assume a cost to income ratio of 50% | B41: 0.5
B43: Risk Adjusted Return
A44: RAROC = ---------------------------------------------------
B45: Economic Capital
A46: Risk Adjusted Return = Revenues - Expenses - Expected Loss + Capital Benefit
A47: Economic Capital = Unexpected loss x Capital Multiple
A48: Expected Loss = Probablilty of Default x Exposure at Default x Loss given Default
A49: Total Bank Receipt = | C49: =K4 -> Agency Fee
C50: Technical Fee
C51: =N4 -> Interest Margin
C52: Arrangement Fee

Sheet Various information
C7: PD Borrower | D7: BB | E7: 0.0115
D8: BB- | E8: 0.02
C9: PD Vietnam | D9: BB | E9: 0.0097
C14: LGD facility with ECA commercial cover | E14: 0.1
C15: LGD Country with ECA political cover | E15: 0.1
C16: LGD facility without ECA cover | E16: 0.6
C17: LGD country without ECA cover | E17: 0.6
C19: CDS vietnam | E19: 297

Sheet results
H4: LGD : cell B 34 and B35
H5: PD Borrower : cell B 36
E6: Net Margin | F6: RAROC
C7: No ECA | E7: 0.0375 | F7: 0.227 | H7: put both LGD at 60% and PD Borrower at 1,15%
C8: Min hurdle rate | E8: 0.0336 | F8: 0.2
C10: WITH ECA BB rating | E10: 0.008 | F10: 0.2284 | H10: put both LGD at 10 % and PD Borrower at 1,15%
C11: Min Hurdle rate | E11: 0.0069 | F11: 0.2
C13: WITH ECA BB- rating | E13: 0.01 | F13: 0.2267 | H13: put both LGD at 10 % and PD Borrower at 2%
C14: Min Hurdle rate | E14: 0.0088 | F14: 0.2
